fUSD/lending_fUSD_20240412
["ID","MTS","AMOUNT","RATE_DAILY","PERIOD"]
[322256469,1712916640683,-1066.86199087,0.00021,2]
[322256470,1712916640693,-14660459.27085432,0.00021,2]
[322256471,1712916640709,-1898316.01021636,0.00021,2]
[322256472,1712916640719,-57177.78440351,0.00021,2]
[322256473,1712916640728,-4597750.80263571,0.00021,2]
[322256474,1712916640738,-983.26,0.00021,2]
[322256475,1712916640754,-715.17033749,0.00021,2]
[322256476,1712916640764,-609.5,0.00021,2]
[322256477,1712916640774,-158.19,0.0002103,2]
[322256478,1712916640783,-168.19,0.00021143,2]
[322256479,1712916640792,-159.17,0.0002133,2]
[322256480,1712916640802,-157.782804,0.00021644,2]
[322256481,1712916640811,-228.83,0.00021918,2]
[322256482,1712916640821,-250.0,0.00021918,2]
[322256483,1712916640830,-250.0,0.00021918,2]
[322256484,1712916640840,-783.91365264,0.00022,2]
[322256485,1712916640850,-168.19,0.00022016,2]
[322256486,1712916640859,-1000.0,0.0002231,2]
[322256487,1712916640872,-157.782804,0.00022466,2]
[322256488,1712916640882,-767.25,0.00022485,2]
[322256489,1712916640891,-902.05173963,0.000225,2]
[322256490,1712916640901,-2347.17,0.00022579,2]
[322256491,1712916640911,-159.17,0.00022699,2]
[322256492,1712916640920,-210.0,0.00022831,2]
[322256493,1712916640930,-168.19,0.00022888,2]
[322256494,1712916640939,-307.15291842,0.00023,2]
[322256495,1712916640949,-155.38304299,0.00023,2]
[322256496,1712916640958,-328.573,0.00023185,2]
[322256497,1712916640968,-157.782804,0.00023288,2]
[322256498,1712916640978,-328.573,0.0002329,2]
[322256499,1712916640987,-156.12850796,0.000233,2]
[322256500,1712916641000,-328.573,0.00023395,2]
[322256501,1712916641010,-3952.61502071,0.000235,2]
[322256502,1712916641020,-328.573,0.00023502,2]
[322256503,1712916641029,-328.573,0.0002361,2]
[322256504,1712916641039,-328.573,0.00023718,2]
[322256505,1712916641049,-168.19,0.0002376,2]
[322256506,1712916641059,-328.573,0.00023828,2]
[322256507,1712916641069,-328.573,0.00023939,2]
[322256508,1712916641078,-224.62727988,0.00024,2]
[322256509,1712916641088,-208.18996497,0.00024,2]
[322256510,1712916641098,-328.573,0.0002405,2]
[322256511,1712916641109,-157.782804,0.0002411,2]
[322256512,1712916641119,-328.573,0.00024163,2]
[322256513,1712916641130,-281.74817421,0.000245,2]
[322256514,1712916641145,-609.5,0.000245,2]
[322256515,1712916641155,-168.19,0.00024633,2]
[322256516,1712916641164,-228.83,0.00024658,2]
[322256517,1712916641174,-428.55,0.00024658,2]
[322256518,1712916641184,-767.25,0.00024749,2]
[322256519,1712916641194,-1000.0,0.00024789,2]
[322256520,1712916641203,-2223.73711434,0.000248,2]
[322256521,1712916641213,-157.782804,0.00024932,2]
[322256522,1712916641222,-800.0,0.00024986,2]
[322256523,1712916641232,-155.2308273,0.00025,2]
[322256524,1712916641241,-2604.28990565,0.00025,2]
[322256525,1712916641257,-1361.64470333,0.00025,2]
[322256526,1712916641266,-562.65039884,0.00025,2]
[322256527,1712916641276,-8077.77748752,0.00025,2]
[322256528,1712916641286,-155.0,0.00025,2]
[322256529,1712916641297,-155.0,0.00025,2]
[322256530,1712916641307,-859.15166946,0.00025,2]
[322256531,1712916641316,-293.0,0.00025114,2]
[322256532,1712916641327,-2347.17,0.00025319,2]
[322256533,1712916641337,-156.12850796,0.000257,2]
[322256534,1712916641346,-157.782804,0.00025753,2]
[322256535,1712916641356,-275830.78694956,0.00026,2]
[322256536,1712916641366,-157.782804,0.00026575,2]
[322256537,1712916641375,-1000.0,0.00027,2]
[322256538,1712916641387,-16166.82052284,0.00027,2]
[322256539,1712916641396,-169.31939491,0.00027,2]
[322256540,1712916641406,-172.64538748,0.00027,2]
[322256541,1712916641420,-767.25,0.00027012,2]
[322256542,1712916641430,-11023.53,0.00027123,2]
[322256543,1712916641440,-1000.0,0.00027268,2]
[322256544,1712916641451,-592.67751853,0.00027397,2]
[322256545,1712916641461,-500.0,0.00027397,2]
[322256546,1712916641471,-500.0,0.00027397,2]
[322256547,1712916641481,-500.0,0.00027397,2]
[322256548,1712916641491,-500.0,0.00027397,2]
[322256549,1712916641502,-500.0,0.00027397,2]
[322256550,1712916641511,-500.0,0.00027397,2]
[322256551,1712916641521,-518.55399294,0.00027397,2]
[322256552,1712916641530,-500.0,0.00027397,2]
[322256553,1712916641541,-500.0,0.00027397,2]
[322256554,1712916641550,-500.0,0.00027397,2]
[322256555,1712916641560,-500.0,0.00027397,2]
[322256556,1712916641569,-500.0,0.00027397,2]
[322256557,1712916641579,-500.0,0.00027397,2]
[322256558,1712916641589,-500.0,0.00027397,2]
[322256559,1712916641599,-500.0,0.00027397,2]
[322256560,1712916641609,-500.0,0.00027397,2]
[322256561,1712916641620,-500.0,0.00027397,2]
[322256562,1712916641629,-500.0,0.00027397,2]
[322256563,1712916641639,-500.0,0.00027397,2]
[322256564,1712916641649,-500.0,0.00027397,2]
[322256565,1712916641660,-500.0,0.00027397,2]
[322256566,1712916641675,-500.0,0.00027397,2]
[322256567,1712916641685,-500.0,0.00027397,2]
[322256568,1712916641694,-500.0,0.00027397,2]
[322256569,1712916641706,-500.0,0.00027397,2]
[322256570,1712916641716,-500.0,0.00027397,2]
[322256571,1712916641726,-500.0,0.00027397,2]
[322256572,1712916641736,-500.0,0.00027397,2]
[322256573,1712916641746,-500.0,0.00027397,2]
[322256574,1712916641758,-500.0,0.00027397,2]
[322256575,1712916641768,-500.0,0.00027397,2]
[322256576,1712916641777,-500.0,0.00027397,2]
[322256577,1712916641788,-500.0,0.00027397,2]
[322256578,1712916641797,-500.0,0.00027397,2]
[322256579,1712916641807,-500.0,0.00027397,2]
[322256580,1712916641817,-500.0,0.00027397,2]
[322256581,1712916641827,-500.0,0.00027397,2]
[322256582,1712916641838,-500.0,0.00027397,2]
[322256583,1712916641848,-493.18232038,0.00027397,2]
[322256584,1712916641858,-500.0,0.00027397,2]
[322256585,1712916641867,-500.0,0.00027397,2]
[322256586,1712916641877,-500.0,0.00027397,2]
[322256587,1712916641889,-500.0,0.00027397,2]
[322256588,1712916641900,-500.0,0.00027397,2]
[322256589,1712916641909,-500.0,0.00027397,2]
[322256590,1712916641920,-500.0,0.00027397,2]
[322256591,1712916641929,-500.0,0.00027397,2]
[322256592,1712916641939,-500.0,0.00027397,2]
[322256593,1712916641950,-500.0,0.00027397,2]
[322256594,1712916641971,-500.0,0.00027397,2]
[322256595,1712916641982,-500.0,0.00027397,2]
[322256596,1712916641992,-500.0,0.00027397,2]
[322256597,1712916642007,-500.0,0.00027397,2]
[322256598,1712916642016,-500.0,0.00027397,2]
[322256599,1712916642026,-500.0,0.00027397,2]
[322256600,1712916642035,-500.0,0.00027397,2]
[322256601,1712916642045,-500.0,0.00027397,2]
[322256602,1712916642055,-500.0,0.00027397,2]
[322256603,1712916642066,-500.0,0.00027397,2]
[322256604,1712916642075,-500.0,0.00027397,2]
[322256605,1712916642085,-500.0,0.00027397,2]
[322256606,1712916642095,-500.0,0.00027397,2]
[322256607,1712916642105,-500.0,0.00027397,2]
[322256608,1712916642116,-500.0,0.00027397,2]
[322256609,1712916642127,-500.0,0.00027397,2]
[322256610,1712916642139,-500.0,0.00027397,2]
[322256611,1712916642149,-500.0,0.00027397,2]
[322256612,1712916642159,-500.0,0.00027397,2]
[322256613,1712916642168,-500.0,0.00027397,2]
[322256614,1712916642179,-500.0,0.00027397,2]
[322256615,1712916642190,-500.0,0.00027397,2]
[322256616,1712916642200,-500.0,0.00027397,2]
[322256617,1712916642210,-500.0,0.00027397,2]
[322256618,1712916642220,-500.0,0.00027397,2]
[322256619,1712916642230,-500.0,0.00027397,2]
[322256620,1712916642239,-535.19879133,0.00027397,2]
[322256621,1712916642251,-500.0,0.00027397,2]
[322256622,1712916642261,-500.0,0.00027397,2]
[322256623,1712916642270,-500.0,0.00027397,2]
[322256624,1712916642281,-500.08458613,0.00027397,2]
[322256625,1712916642292,-500.0,0.00027397,2]
[322256626,1712916642303,-500.0,0.00027397,2]
[322256627,1712916642313,-500.0,0.00027397,2]
[322256628,1712916642325,-486.71270498,0.00027397,2]
[322256629,1712916642336,-500.0,0.00027397,2]
[322256630,1712916642347,-500.0,0.00027397,2]
[322256631,1712916642357,-501.62099115,0.00027397,2]
[322256632,1712916642367,-512.89140665,0.00027397,2]
[322256633,1712916642377,-500.0,0.00027397,2]
[322256634,1712916642387,-500.0,0.00027397,2]
[322256635,1712916642398,-500.0,0.00027397,2]
[322256636,1712916642408,-500.0,0.00027397,2]
[322256637,1712916642418,-500.0,0.00027397,2]
[322256638,1712916642427,-500.0,0.00027397,2]
[322256639,1712916642436,-500.0,0.00027397,2]
[322256640,1712916642446,-500.0,0.00027397,2]
[322256641,1712916642455,-500.0,0.00027397,2]
[322256642,1712916642465,-500.0,0.00027397,2]
[322256643,1712916642474,-500.0,0.00027397,2]
[322256644,1712916642483,-502.31412365,0.00027397,2]
[322256645,1712916642493,-500.0,0.00027397,2]
[322256646,1712916642503,-494.84632216,0.00027397,2]
[322256647,1712916642512,-500.0,0.00027397,2]
[322256648,1712916642522,-601.01072066,0.00027397,2]
[322256649,1712916642533,-500.0,0.00027397,2]
[322256650,1712916642543,-500.0,0.00027397,2]
[322256651,1712916642553,-488.21405868,0.00027397,2]
[322256652,1712916642562,-500.0,0.00027397,2]
[322256653,1712916642572,-500.0,0.00027397,2]
[322256654,1712916642581,-500.0,0.00027397,2]
[322256655,1712916642590,-500.0,0.00027397,2]
[322256656,1712916642600,-500.0,0.00027397,2]
[322256658,1712916642610,-500.0,0.00027397,2]
[322256660,1712916642619,-500.0,0.00027397,2]
[322256662,1712916642629,-509.06245032,0.00027397,2]
[322256665,1712916642638,-504.77539319,0.00027397,2]
[322256667,1712916642647,-500.0,0.00027397,2]
[322256669,1712916642657,-500.0,0.00027397,2]
[322256671,1712916642674,-500.0,0.00027397,2]
[322256672,1712916642684,-500.0,0.00027397,2]
[322256673,1712916642693,-515.05354312,0.00027397,2]
[322256674,1712916642703,-500.0,0.00027397,2]
[322256675,1712916642713,-500.0,0.00027397,2]
[322256676,1712916642723,-571.65245961,0.00027397,2]
[322256677,1712916642733,-500.0,0.00027397,2]
[322256678,1712916642744,-500.0,0.00027397,2]
[322256679,1712916642755,-516.46133117,0.00027397,2]
[322256680,1712916642765,-500.0,0.00027397,2]
[322256681,1712916642774,-501.01009068,0.00027397,2]
[322256682,1712916642785,-500.0,0.00027397,2]
[322256683,1712916642795,-500.0,0.00027397,2]
[322256684,1712916642804,-500.0,0.00027397,2]
[322256685,1712916642814,-500.0,0.00027397,2]
[322256686,1712916642823,-500.0,0.00027397,2]
[322256687,1712916642833,-502.82560971,0.00027397,2]
[322256688,1712916642843,-500.0,0.00027397,2]
[322256689,1712916642852,-500.0,0.00027397,2]
[322256690,1712916642861,-500.0,0.00027397,2]
[322256691,1712916642871,-500.0,0.00027397,2]
[322256692,1712916642881,-505.47281761,0.00027397,2]
[322256693,1712916642891,-531.23508101,0.00027397,2]
[322256694,1712916642900,-500.0,0.00027397,2]
[322256695,1712916642909,-500.0,0.00027397,2]
[322256696,1712916642918,-500.0,0.00027397,2]
[322256697,1712916642928,-500.0,0.00027397,2]
[322256698,1712916642937,-500.0,0.00027397,2]
[322256699,1712916642947,-501.66064014,0.00027397,2]
[322256700,1712916642956,-500.0,0.00027397,2]
[322256701,1712916642965,-500.0,0.00027397,2]
[322256702,1712916642976,-500.0,0.00027397,2]
[322256703,1712916642985,-500.0,0.00027397,2]
[322256704,1712916642994,-500.0,0.00027397,2]
[322256705,1712916643006,-633.07439663,0.00027397,2]
[322256706,1712916643015,-500.32559557,0.00027397,2]
[322256707,1712916643025,-500.0,0.00027397,2]
[322256708,1712916643035,-500.0,0.00027397,2]
[322256709,1712916643045,-500.0,0.00027397,2]
[322256710,1712916643054,-500.0,0.00027397,2]
[322256711,1712916643063,-500.0,0.00027397,2]
[322256712,1712916643073,-500.0,0.00027397,2]
[322256713,1712916643082,-500.0,0.00027397,2]
[322256714,1712916643091,-500.0,0.00027397,2]
[322256715,1712916643100,-507.89926353,0.00027397,2]
[322256716,1712916643110,-500.0,0.00027397,2]
[322256717,1712916643119,-500.0,0.00027397,2]
[322256718,1712916643128,-500.0,0.00027397,2]
[322256719,1712916643137,-500.0,0.00027397,2]
[322256720,1712916643147,-500.0,0.00027397,2]
[322256721,1712916643157,-500.0,0.00027397,2]
[322256722,1712916643166,-531.79394109,0.00027397,2]
[322256723,1712916643176,-500.0,0.00027397,2]
[322256724,1712916643186,-500.0,0.00027397,2]
[322256725,1712916643197,-500.0,0.00027397,2]
[322256726,1712916643211,-500.0,0.00027397,2]
[322256727,1712916643222,-152.80830788,0.00027397,2]
[322256728,1712916643234,-301.03033701,0.00027397,2]
[322256729,1712916643246,-500.0,0.00027397,2]
[322256730,1712916643256,-500.0,0.00027397,2]
[322256731,1712916643266,-500.0,0.00027397,2]
[322256732,1712916643275,-500.0,0.00027397,2]
[322256733,1712916643285,-500.0,0.00027397,2]
[322256734,1712916643296,-500.0,0.00027397,2]
[322256735,1712916643306,-511.08481742,0.00027397,2]
[322256736,1712916643315,-500.0,0.00027397,2]
[322256737,1712916643325,-500.0,0.00027397,2]
[322256738,1712916643334,-500.0,0.00027397,2]
[322256739,1712916643344,-500.0,0.00027397,2]
[322256740,1712916643353,-500.0,0.00027397,2]
[322256741,1712916643363,-500.0,0.00027397,2]
[322256745,1712916643569,-500.0,0.00027397,2]
[322256746,1712916643600,-544.29930275,0.00027397,2]
[322256747,1712916643610,-150.0,0.00027397,2]
[322256748,1712916643619,-500.0,0.00027397,2]
[322256749,1712916643628,-500.0,0.00027397,2]
[322256750,1712916643638,-503.9490068,0.00027397,2]
[322256751,1712916643647,-500.0,0.00027397,2]
[322256752,1712916643657,-505.15046055,0.00027397,2]
[322256753,1712916643669,-500.0,0.00027397,2]
[322256754,1712916643682,-500.0,0.00027397,2]
[322256755,1712916643691,-500.0,0.00027397,2]
[322256756,1712916643700,-500.0,0.00027397,2]
[322256757,1712916643711,-500.0,0.00027397,2]
[322256758,1712916643720,-500.0,0.00027397,2]
[322256759,1712916643728,-500.0,0.00027397,2]
[322256760,1712916643738,-500.0,0.00027397,2]
[322256761,1712916643748,-500.0,0.00027397,2]
[322256762,1712916643758,-500.0,0.00027397,2]
[322256763,1712916643767,-500.0,0.00027397,2]
[322256764,1712916643776,-500.0,0.00027397,2]
[322256765,1712916643786,-505.95941876,0.00027397,2]
[322256766,1712916643795,-500.0,0.00027397,2]
[322256767,1712916643804,-500.0,0.00027397,2]
[322256768,1712916643814,-500.0,0.00027397,2]
[322256769,1712916643824,-500.0,0.00027397,2]
[322256770,1712916643835,-500.0,0.00027397,2]
[322256771,1712916643845,-500.0,0.00027397,2]
[322256772,1712916643856,-269.02542023,0.00027397,2]
[322256773,1712916643867,-500.0,0.00027397,2]
[322256774,1712916643881,-500.0,0.00027397,2]
[322256775,1712916643890,-500.0,0.00027397,2]
[322256776,1712916643899,-500.0,0.00027397,2]
[322256777,1712916643910,-500.0,0.00027397,2]
[322256778,1712916643921,-500.0,0.00027397,2]
[322256779,1712916643931,-500.0,0.00027397,2]
[322256780,1712916643941,-500.0,0.00027397,2]
[322256781,1712916643951,-500.0,0.00027397,2]
[322256782,1712916643961,-500.0,0.00027397,2]
[322256783,1712916643971,-216.40711467,0.00027397,2]
[322256784,1712916643981,-529.69304351,0.00027397,2]
[322256785,1712916643992,-500.0,0.00027397,2]
[322256786,1712916644003,-538.3545986,0.00027397,2]
[322256787,1712916644013,-500.0,0.00027397,2]
[322256788,1712916644023,-500.0,0.00027397,2]
[322256789,1712916644033,-500.0,0.00027397,2]
[322256790,1712916644043,-528.43569353,0.00027397,2]
[322256791,1712916644055,-500.0,0.00027397,2]
[322256792,1712916644065,-500.0,0.00027397,2]
[322256793,1712916644075,-500.0,0.00027397,2]
[322256794,1712916644085,-500.0,0.00027397,2]
[322256795,1712916644095,-500.0,0.00027397,2]
[322256796,1712916644105,-500.0,0.00027397,2]
[322256797,1712916644115,-575.2,0.00027397,2]
[322256798,1712916644125,-1000.0,0.00027397,2]
[322256799,1712916644135,-500.0,0.00027397,2]
[322256800,1712916644145,-500.0,0.00027397,2]
[322256801,1712916644156,-500.0,0.00027397,2]
[322256802,1712916644167,-500.0,0.00027397,2]
[322256803,1712916644177,-500.0,0.00027397,2]
[322256804,1712916644187,-500.0,0.00027397,2]
[322256805,1712916644199,-500.0,0.00027397,2]
[322256806,1712916644209,-500.0,0.00027397,2]
[322256807,1712916644220,-542.40416691,0.00027397,2]
[322256808,1712916644230,-500.0,0.00027397,2]
[322256809,1712916644239,-500.0,0.00027397,2]
[322256810,1712916644249,-520.03,0.00027397,2]
[322256811,1712916644258,-500.0,0.00027397,2]
[322256812,1712916644267,-500.0,0.00027397,2]
[322256813,1712916644276,-500.0,0.00027397,2]
[322256814,1712916644285,-500.0,0.00027397,2]
[322256815,1712916644294,-152.10638196,0.00027397,2]
[322256816,1712916644303,-500.0,0.00027397,2]
[322256817,1712916644312,-500.0,0.00027397,2]
[322256818,1712916644322,-500.0,0.00027397,2]
[322256819,1712916644330,-500.0,0.00027397,2]
[322256820,1712916644339,-500.0,0.00027397,2]
[322256821,1712916644348,-473.53000131,0.00027397,2]
[322256822,1712916644357,-500.0,0.00027397,2]
[322256823,1712916644366,-500.0,0.00027397,2]
[322256824,1712916644376,-500.0,0.00027397,2]
[322256825,1712916644385,-500.0,0.00027397,2]
[322256826,1712916644394,-370.84745063,0.00027397,2]
[322256827,1712916644404,-500.0,0.00027397,2]
[322256828,1712916644413,-541.34631006,0.00027397,2]
[322256829,1712916644422,-500.0,0.00027397,2]
[322256830,1712916644431,-500.0,0.00027397,2]
[322256831,1712916644441,-500.0,0.00027397,2]
[322256832,1712916644450,-513.48984927,0.00027397,2]
[322256833,1712916644459,-500.0,0.00027397,2]
[322256834,1712916644468,-500.0,0.00027397,2]
[322256835,1712916644477,-500.0,0.00027397,2]
[322256836,1712916644486,-500.0,0.00027397,2]
[322256837,1712916644495,-310.28567059,0.00027397,2]
[322256838,1712916644505,-500.0,0.00027397,2]
[322256839,1712916644514,-500.0,0.00027397,2]
[322256840,1712916644523,-500.0,0.00027397,2]
[322256841,1712916644532,-500.0,0.00027397,2]
[322256842,1712916644541,-500.0,0.00027397,2]
[322256843,1712916644551,-501.79103453,0.00027397,2]
[322256844,1712916644560,-500.0,0.00027397,2]
[322256845,1712916644569,-431.25016338,0.00027397,2]
[322256846,1712916644578,-500.0,0.00027397,2]
[322256847,1712916644587,-643.362851,0.00027397,2]
[322256848,1712916644596,-495.48372114,0.00027397,2]
[322256849,1712916644605,-500.0,0.00027397,2]
[322256850,1712916644614,-500.0,0.00027397,2]
[322256851,1712916644624,-500.0,0.00027397,2]
[322256852,1712916644633,-500.0,0.00027397,2]
[322256853,1712916644642,-500.0,0.00027397,2]
[322256854,1712916644650,-500.0,0.00027397,2]
[322256855,1712916644660,-500.0,0.00027397,2]
[322256856,1712916644672,-500.0,0.00027397,2]
[322256857,1712916644682,-500.0,0.00027397,2]
[322256858,1712916644691,-500.0,0.00027397,2]
[322256859,1712916644700,-537.75678544,0.00027397,2]
[322256860,1712916644709,-500.0,0.00027397,2]
[322256861,1712916644719,-568.52722949,0.00027397,2]
[322256862,1712916644728,-500.0,0.00027397,2]
[322256863,1712916644737,-509.21936118,0.00027397,2]
[322256864,1712916644748,-285.64927331,0.00027397,2]
[322256865,1712916644758,-500.0,0.00027397,2]
[322256866,1712916644767,-500.0,0.00027397,2]
[322256867,1712916644776,-500.0,0.00027397,2]
[322256868,1712916644785,-500.0,0.00027397,2]
[322256869,1712916644794,-500.0,0.00027397,2]
[322256870,1712916644804,-500.0,0.00027397,2]
[322256871,1712916644813,-500.0,0.00027397,2]
[322256872,1712916644822,-500.0,0.00027397,2]
[322256873,1712916644832,-500.0,0.00027397,2]
[322256874,1712916644841,-271.75683042,0.00027397,2]
[322256875,1712916644850,-844.56,0.00027397,2]
[322256876,1712916644860,-500.0,0.00027397,2]
[322256877,1712916644869,-509.61188412,0.00027397,2]
[322256878,1712916644878,-500.0,0.00027397,2]
[322256879,1712916644887,-500.0,0.00027397,2]
[322256880,1712916644896,-526.97159416,0.00027397,2]
[322256881,1712916644905,-502.60418016,0.00027397,2]
[322256882,1712916644914,-500.0,0.00027397,2]
[322256883,1712916644923,-500.0,0.00027397,2]
[322256884,1712916644932,-1528.81,0.00027397,2]
[322256885,1712916644942,-500.0,0.00027397,2]
[322256886,1712916644951,-500.0,0.00027397,2]
[322256887,1712916644962,-500.0,0.00027397,2]
[322256888,1712916644974,-688.0,0.00027397,2]
[322256889,1712916644984,-500.0,0.00027397,2]
[322256890,1712916644994,-500.0,0.00027397,2]
[322256891,1712916645005,-500.0,0.00027397,2]
[322256892,1712916645014,-500.0,0.00027397,2]
[322256893,1712916645024,-500.0,0.00027397,2]
[322256894,1712916645034,-513.6,0.00027397,2]
[322256895,1712916645045,-500.0,0.00027397,2]
[322256896,1712916645055,-500.0,0.00027397,2]
[322256897,1712916645065,-500.0,0.00027397,2]
[322256898,1712916645074,-500.0,0.00027397,2]
[322256899,1712916645085,-500.0,0.00027397,2]
[322256900,1712916645094,-500.0,0.00027397,2]
[322256901,1712916645103,-1391.19,0.00027397,2]
[322256902,1712916645113,-500.0,0.00027397,2]
[322256903,1712916645122,-1076.28,0.00027397,2]
[322256904,1712916645133,-500.0,0.00027397,2]
[322256905,1712916645143,-500.0,0.00027397,2]
[322256906,1712916645153,-500.0,0.00027397,2]
[322256907,1712916645164,-500.0,0.00027397,2]
[322256908,1712916645173,-500.0,0.00027397,2]
[322256909,1712916645184,-500.0,0.00027397,2]
[322256910,1712916645193,-500.0,0.00027397,2]
[322256911,1712916645204,-500.0,0.00027397,2]
[322256912,1712916645214,-500.0,0.00027397,2]
[322256913,1712916645223,-500.0,0.00027397,2]
[322256914,1712916645233,-500.0,0.00027397,2]
[322256915,1712916645242,-500.0,0.00027397,2]
[322256916,1712916645251,-550.78,0.00027397,2]
[322256917,1712916645260,-500.0,0.00027397,2]
[322256918,1712916645270,-297.39632027,0.00027397,2]
[322256919,1712916645279,-500.0,0.00027397,2]
[322256920,1712916645288,-500.0,0.00027397,2]
[322256921,1712916645298,-613.24,0.00027397,2]
[322256922,1712916645307,-578.33,0.00027397,2]
[322256923,1712916645316,-505.16068073,0.00027397,2]
[322256924,1712916645325,-500.0,0.00027397,2]
[322256925,1712916645335,-510.89246461,0.00027397,2]
[322256926,1712916645345,-4360.31,0.00027397,2]
[322256927,1712916645354,-500.0,0.00027397,2]
[322256928,1712916645363,-516.01841768,0.00027397,2]
[322256929,1712916645373,-500.0,0.00027397,2]
[322256930,1712916645382,-500.0,0.00027397,2]
[322256931,1712916645392,-500.0,0.00027397,2]
[322256932,1712916645401,-500.0,0.00027397,2]
[322256933,1712916645410,-500.0,0.00027397,2]
[322256934,1712916645420,-589.66,0.00027397,2]
[322256935,1712916645429,-500.0,0.00027397,2]
[322256936,1712916645438,-500.0,0.00027397,2]
[322256937,1712916645448,-500.0,0.00027397,2]
[322256938,1712916645457,-500.0,0.00027397,2]
[322256939,1712916645466,-500.0,0.00027397,2]
[322256940,1712916645476,-500.0,0.00027397,2]
[322256941,1712916645485,-500.0,0.00027397,2]
[322256942,1712916645495,-500.0,0.00027397,2]
[322256943,1712916645505,-500.0,0.00027397,2]
[322256944,1712916645514,-500.0,0.00027397,2]
[322256945,1712916645524,-2207.75,0.00027397,2]
[322256946,1712916645533,-500.0,0.00027397,2]
[322256947,1712916645543,-500.0,0.00027397,2]
[322256948,1712916645552,-500.0,0.00027397,2]
[322256949,1712916645561,-730.85,0.00027397,2]
[322256951,1712916645571,-500.0,0.00027397,2]
[322256952,1712916645580,-500.0,0.00027397,2]
[322256953,1712916645589,-500.0,0.00027397,2]
[322256954,1712916645599,-500.0,0.00027397,2]
[322256955,1712916645608,-220.86884348,0.00027397,2]
[322256956,1712916645617,-834.74,0.00027397,2]
[322256958,1712916645626,-500.0,0.00027397,2]
[322256960,1712916645636,-500.0,0.00027397,2]
[322256961,1712916645645,-500.0,0.00027397,2]
[322256962,1712916645655,-500.0,0.00027397,2]
[322256963,1712916645665,-500.0,0.00027397,2]
[322256964,1712916645675,-503.47,0.00027397,2]
[322256965,1712916645685,-652.05,0.00027397,2]
[322256966,1712916645694,-500.0,0.00027397,2]
[322256967,1712916645704,-1520.01,0.00027397,2]
[322256968,1712916645714,-500.0,0.00027397,2]
[322256969,1712916645724,-500.0,0.00027397,2]
[322256970,1712916645733,-500.0,0.00027397,2]
[322256972,1712916645744,-500.0,0.00027397,2]
[322256974,1712916645754,-500.0,0.00027397,2]
[322256976,1712916645764,-500.0,0.00027397,2]
[322256978,1712916645774,-500.0,0.00027397,2]
[322256980,1712916645783,-500.0,0.00027397,2]
[322256982,1712916645792,-500.0,0.00027397,2]
[322256984,1712916645802,-500.0,0.00027397,2]
[322256986,1712916645811,-504.37,0.00027397,2]
[322256988,1712916645820,-500.0,0.00027397,2]
[322256990,1712916645831,-500.0,0.00027397,2]
[322256992,1712916645841,-500.0,0.00027397,2]
[322256994,1712916645850,-500.0,0.00027397,2]